Workbook

Sheet Титульный
A1: SHABLON.TSO.2023
A2: Версия 1.0.6
B4: Информация о плате за техприсоединение к электросетям
B6: Наименование организации | C6: ООО "Газпром энерго"
B7: ИНН | C7: 7736186950
B8: КПП | C8: 860202001
B9: Наименование (описание) обособленного подразделения | C9: ООО "Газпром энерго" Сургутский филиал
B10: Организационно-правовая форма | C10: Общество с ограниченной ответственностью
B11: Вид деятельности | C11: Сетевая компания
B12: Период | C12: 2022
C13: Адрес регулируемой организации
B14: Юридический адрес | C14: 628400, Российская Федерация, Ханты-Мансийский автономный округ, г. Сургут, ул.Ленина, д. 43
B15: Почтовый адрес | C15: 628418, РФ, Тюменская область, Ханты-Мансийский автономный округ-Югра, г. Сургут, ул.Островского, д. 16
C16: Руководитель
B17: Фамилия, имя, отчество | C17: Баруля Сергей Александрович
B18: Телефон | C18: 8 (3462) 36 21 98
C19: Ответственный за предоставление информации (от регулируемой организации)
B20: Фамилия, имя, отчество | C20: Каримова Лидия Сергеевна
B21: Должность | C21: экономист I категории
B22: Контактный телефон | C22: 8 (3462) 75 19 13
B23: e-mail | C23: L.Karimova@suf.energo.gazprom.ru

Sheet Инструкция
B2: Инструкция по заполнению приложений, направленных письмом Региональной энергетической комиссии Свердловской области (далее – РЭК Свердловской области), разработанных в соответствии с методическими указаниями по определению размера платы за технологическое присоединение к электрическим сетям, утвержденными приказом ФАС России от 30.06.2022 № 490/22
B3: 1. Ячейки голубого цвета подлежат обязательному заполнению территориальной сетевой организацией (далее – ТСО), ячейки желтого цвета предназначены для заполнения ТСО, ячейки зеленого цвета не подлежат заполнению.
B4: ="2. Показатели в приложении 1 заполняются в отношении построенных и введенных в эксплуатацию объектов электросетевого хозяйства "&"ТСО за периоды "&IF(Титульный!C12="","--- выберите период на листе Титульный.",(Титульный!C12-3)&", "&(Титульный!C12-2)&", "&(Титульный!C12-1)&" годы.") -> 2. Показатели в приложении 1 заполняются в отношении построенных и введенных в эксплуатацию объектов электросетевого хозяйства ТСО за периоды 2019, 2020, 2021 годы.
B5: ="3. Показатели в приложении 1 заполняются для территорий городских населенных пунктов и для территорий, " & "не относящихся к городским населенным пунктам без разделения по типу." -> 3. Показатели в приложении 1 заполняются для территорий городских населенных пунктов и для территорий, не относящихся к городским населенным пунктам без разделения по типу.
B6: 4. Показатели в приложениях 2.1, 2.2, 2.3, 3.1, 3.2 заполняются за 2019, 2020, 2021 годы.
B8: I. Заполнение приложения 1.
B9: 1) Приложение 1 заполняется для территорий городских населенных пунктов и для территорий, не относящихся к городским населенным пунктам без разделения по типу.
B10: 2) В графе 2 указываются характеристики объекта электросетевого хозяйства/средства коммерческого учета электрической энергии (мощности), введенного в эксплуатацию (наименование мероприятия, выполненного ТСО в соответствии с выданными техническими условиями).
B12: 3) В графах 3, 6, 9 указывается протяженность воздушной или кабельной линий электропередачи (далее – ЛЭП) в километрах по трассе (без учета количества кабелей (проводов) в линии), а также количество пунктов секционирования и точек учета электрической энергии (мощности) в штуках.
B13: 4) В графах 4, 7, 10 указывается размер максимальной мощности энергопринимающего устройства заявителя с учетом третьей категории надежности.
B14: 5) В графах 5, 8, 11 указываются расходы на строительство введенных в эксплуатацию объектов электросетевого хозяйства ТСО, а также на обеспечение средствами коммерческого учета электрической энергии (мощности), в соответствии с учетной политикой ТСО (например: стоимость принимаемых основных фондов согласно формам КС-14, КС-11).
B15: 6) В графах 5, 8, 11, 14 указывается размерность показателей с учётом обязательного заполнения трех знаков после запятой.
B16: 7) Графы 12-14 заполняются ТСО только в случае, если за 3 предыдущих года ТСО не осуществлялось строительство объектов электросетевого хозяйства, а также обеспечение средствами коммерческого учета электрической энергии (мощности), в отношении которых устанавливаются стандартизированные тарифные ставки, по планируемым расходам, определенным по сметам, выполненным с применением сметных нормативов.
B17: ="8) За периоды " &IF(Титульный!C12="","--- выберите период на листе Титульный --- ",(Титульный!C12-3)&", "&(Титульный!C12-2)&", "&(Титульный!C12-1)&" годы ") & "всем ТСО необходимо представить в РЭК Свердловской области документы, подтверждающие расходы на выполнение мероприятий по строительству объектов электросетевого хозяйства ТСО, а также на обеспечение средствами коммерческого учета электрической энергии." -> 8) За периоды 2019, 2020, 2021 годы всем ТСО необходимо представить в РЭК Свердловской области документы, подтверждающие расходы на выполнение мероприятий по строительству объектов электросетевого хозяйства ТСО, а также на обеспечение средствами коммерческого учета электрической энергии.
B19: II. Заполнение приложений 2.1, 2.2, 2.3.
B20: ="1) Приложение 2.1 заполняется за " &IF(Титульный!C12="","--- выберите период на листе Титульный.",(Титульный!C12-3)&" год.") -> 1) Приложение 2.1 заполняется за 2019 год.
B21: ="2) Приложение 2.2 заполняется за " &IF(Титульный!C12="","--- выберите период на листе Титульный.",(Титульный!C12-2)&" год.") -> 2) Приложение 2.2 заполняется за 2020 год.
B22: ="3) Приложение 2.3 заполняется за " &IF(Титульный!C12="","--- выберите период на листе Титульный.",(Титульный!C12-1)&" год.") -> 3) Приложение 2.3 заполняется за 2021 год.
B23: 4) В графе 3 пункта 1 указываются расходы ТСО на выполнение мероприятий по подготовке и выдаче технических условий заявителю в тыс. рублей.
B24: 5) В графе 3 пунктов 2.1, 2.2 указываются расходы ТСО на выполнение мероприятий по проверке сетевой организацией выполнения заявителем технических условий в тыс. рублей.
B25: 6) В графе 4 указывается количество технологических присоединений, в штуках.
B26: 7) В графе 5 указывается объем максимальной мощности, в кВт.
B27: ="8) За периоды " &IF(Титульный!C12="","--- выберите период на листе Титульный --- ",(Титульный!C12-3)&", "&(Титульный!C12-2)&", "&(Титульный!C12-1)&" годы ") & "всем ТСО необходимо представить в РЭК Свердловской области документы, подтверждающие расходы, количество техприсоединений, объем максимальной мощности." -> 8) За периоды 2019, 2020, 2021 годы всем ТСО необходимо представить в РЭК Свердловской области документы, подтверждающие расходы, количество техприсоединений, объем максимальной мощности.
B29: III. Заполнение приложений 3.1, 3.2.
B30: 1) Приложение 3.1 заполняется ТСО по мероприятию: подготовка и выдача сетевой организацией технических условий заявителю.
B31: 2) Приложение 3.2 заполняется ТСО по мероприятию: проверка сетевой организацией выполнения заявителем технических условий.
B32: 3) В графах 3-5 указываются расходы на выполнение мероприятий по технологическому присоединению с разбивкой по каждому показателю в тыс. рублей в соответствии с учетной политикой ТСО и бухгалтерской отчетностью.
B33: 4) В графах 3-5 указывается размерность показателей с учётом обязательного заполнения трех знаков после запятой.
B34: ="5) За периоды " &IF(Титульный!C12="","--- выберите период на листе Титульный --- ",(Титульный!C12-3)&", "&(Титульный!C12-2)&", "&(Титульный!C12-1)&" годы ") & "всем ТСО необходимо представить в РЭК Свердловской области документы, подтверждающие расходы по технологическому присоединению." -> 5) За периоды 2019, 2020, 2021 годы всем ТСО необходимо представить в РЭК Свердловской области документы, подтверждающие расходы по технологическому присоединению.

Sheet Прил. № 1
G11: Приложение № 1
A12: dd_hide/show | B12: hide | C12: range_name | D12: address_title | E12: address_svod | G12: Расходы на строительство введенных в эксплуатацию объектов электросетевого хозяйства для целей технологического присоединения и для целей реализации иных мероприятий инвестиционной программы территориальной сетевой организации, а также на обеспечение средствами коммерческого учета электрической энергии (мощности)
G13: № п/п | H13: Объект электросетевого хозяйства/Средство коммерческого учета электрической энергии (мощности) | N13: Год ввода объекта 2019 | R13: Год ввода объекта 2020 | V13: Год ввода объекта 2021 | Z13: План*
N14: уровень напряжения, кВ | O14: протяженность (для линий электропередачи), км. / количество (для пунктов секционирования, точек учета ээ), шт. | P14: максимальная мощность, кВт | Q14: расходы на строительство объекта/на обеспечение средствами коммерческого учета электрической энергии (мощности), тыс. руб. | R14: уровень напряжения, кВ | S14: протяженность (для линий электропередачи), км. / количество (для пунктов секционирования, точек учета ээ), шт. | T14: максимальная мощность, кВт | U14: расходы на строительство объекта/на обеспечение средствами коммерческого учета электрической энергии (мощности), тыс. руб. | V14: уровень напряжения, кВ | W14: протяженность (для линий электропередачи), км. / количество (для пунктов секционирования, точек учета ээ), шт. | X14: максимальная мощность, кВт | Y14: расходы на строительство объекта/на обеспечение средствами коммерческого учета электрической энергии (мощности), тыс. руб. | Z14: уровень напряжения, кВ | AA14: протяженность (для линий электропередачи), км. / количество (для пунктов секционирования, точек учета ээ), шт. | AB14: максимальная мощность, кВт | AC14: расходы на строительство объекта/на обеспечение средствами коммерческого учета электрической энергии (мощности), тыс. руб.
A15: ddShPr11City_rstart | G15: 1 | H15: 2 | N15: 3 | O15: 3 | P15: 4 | Q15: 5 | R15: 7 | S15: 6 | T15: 7 | U15: 8 | V15: 11 | W15: 9 | X15: 10 | Y15: 11 | Z15: 15 | AA15: 12 | AB15: 13 | AC15: 14
G16: 1. | H16: СТРОИТЕЛЬСТВО ВОЗДУШНЫХ ЛИНИЙ ЭЛЕКТРОПЕРЕДАЧИ | O16: =SUM(O18:O20) -> 0.000 | P16: =SUM(P18:P20) -> 0.000 | Q16: =SUM(Q18:Q20) -> 0.000 | S16: =SUM(S18:S20) -> 0.000 | T16: =SUM(T18:T20) -> 0.000 | U16: =SUM(U18:U20) -> 0.000 | W16: =SUM(W18:W20) -> 0.000 | X16: =SUM(X18:X20) -> 0.000 | Y16: =SUM(Y18:Y20) -> 0.000 | AA16: =SUM(AA18:AA20) -> 0.000 | AB16: =SUM(AB18:AB20) -> 0.000 | AC16: =SUM(AC18:AC20) -> 0.000
H17: тип опор: | I17: тип провода: | J17: материал провода: | K17: сечение провода: | L17: количество цепей: | M17: уровень напряжения:
B18: 1
B19: 1 | C19: VL | D19: =ROW($D$17) -> 17 | F19: Удалить | G19: =$G$16 & (ROWS($G$18:G19)-2)+1&"." -> 1.1.
B20: 1
H21: Добавить
B22: 1
G23: 2. | H23: СТРОИТЕЛЬСТВО КАБЕЛЬНЫХ ЛИНИЙ ЭЛЕКТРОПЕРЕДАЧИ | O23: =SUM(O25:O27) -> 0.000 | P23: =SUM(P25:P27) -> 0.000 | Q23: =SUM(Q25:Q27) -> 0.000 | S23: =SUM(S25:S27) -> 0.000 | T23: =SUM(T25:T27) -> 0.000 | U23: =SUM(U25:U27) -> 0.000 | W23: =SUM(W25:W27) -> 0.000 | X23: =SUM(X25:X27) -> 0.000 | Y23: =SUM(Y25:Y27) -> 0.000 | AA23: =SUM(AA25:AA27) -> 0.000 | AB23: =SUM(AB25:AB27) -> 0.000 | AC23: =SUM(AC25:AC27) -> 0.000
H24: способ прокладки: | I24: количество жил: | J24: тип изоляции: | K24: сечение провода: | L24: количество кабелей в траншее, канале, туннеле или коллекторе, на галерее или эстакаде, труб в скважине: | M24: уровень напряжения:
B25: 1
B26: 1 | C26: KL | D26: =ROW($D$24) -> 24 | F26: Удалить | G26: =$G$23 & (ROWS($G$25:G26)-2)+1&"." -> 2.1.
B27: 1
H28: Добавить
B29: 1
G30: 3. | H30: СТРОИТЕЛЬСТВО ПУНКТОВ СЕКЦИОНИРОВАНИЯ | O30: =SUM(O32:O34) -> 0.000 | P30: =SUM(P32:P34) -> 0.000 | Q30: =SUM(Q32:Q34) -> 0.000 | S30: =SUM(S32:S34) -> 0.000 | T30: =SUM(T32:T34) -> 0.000 | U30: =SUM(U32:U34) -> 0.000 | W30: =SUM(W32:W34) -> 0.000 | X30: =SUM(X32:X34) -> 0.000 | Y30: =SUM(Y32:Y34) -> 0.000 | AA30: =SUM(AA32:AA34) -> 0.000 | AB30: =SUM(AB32:AB34) -> 0.000 | AC30: =SUM(AC32:AC34) -> 0.000
H31: пункт секционирования: | I31: номинальный ток: | J31: количество ячеек в распределительном или переключательном пункте: | K31: уровень напряжения:
B32: 1
B33: 1 | C33: PS | D33: =ROW($D$31) -> 31 | F33: Удалить | G33: =$G$30 & (ROWS($G$32:G33)-2)+1&"." -> 3.1.
B34: 1
H35: Добавить
B36: 1
G37: 4. | H37: СТРОИТЕЛЬСТВО КОМПЛЕКТНЫХ ТРАНСФОРМАТОРНЫХ ПОДСТАНЦИЙ (КТП) С УРОВНЕМ НАПРЯЖЕНИЯ ДО 35 КВ | O37: =SUM(O39:O41) -> 0.000 | P37: =SUM(P39:P41) -> 0.000 | Q37: =SUM(Q39:Q41) -> 0.000 | S37: =SUM(S39:S41) -> 0.000 | T37: =SUM(T39:T41) -> 0.000 | U37: =SUM(U39:U41) -> 0.000 | W37: =SUM(W39:W41) -> 0.000 | X37: =SUM(X39:X41) -> 0.000 | Y37: =SUM(Y39:Y41) -> 0.000 | AA37: =SUM(AA39:AA41) -> 0.000 | AB37: =SUM(AB39:AB41) -> 0.000 | AC37: =SUM(AC39:AC41) -> 0.000
H38: уровень напряжения: | I38: количество трансформаторов: | J38: трансформаторная мощность: | K38: тип трансформаторной подстанции:
B39: 1
B40: 1 | C40: TS | D40: =ROW($D$38) -> 38 | F40: Удалить | G40: =$G$37 & (ROWS($G$39:G40)-2)+1&"." -> 4.1.
B41: 1
H42: Добавить
B43: 1
G44: 5. | H44: СТРОИТЕЛЬСТВО РАСПРЕДЕЛИТЕЛЬНЫХ ТРАНСФОРМАТОРНЫХ ПОДСТАНЦИЙ (РТП) С УРОВНЕМ НАПРЯЖЕНИЯ ДО 35 КВ | O44: =SUM(O46:O48) -> 0.000 | P44: =SUM(P46:P48) -> 0.000 | Q44: =SUM(Q46:Q48) -> 0.000 | S44: =SUM(S46:S48) -> 0.000 | T44: =SUM(T46:T48) -> 0.000 | U44: =SUM(U46:U48) -> 0.000 | W44: =SUM(W46:W48) -> 0.000 | X44: =SUM(X46:X48) -> 0.000 | Y44: =SUM(Y46:Y48) -> 0.000 | AA44: =SUM(AA46:AA48) -> 0.000 | AB44: =SUM(AB46:AB48) -> 0.000 | AC44: =SUM(AC46:AC48) -> 0.000
H45: количество трансформаторов: | I45: трансформаторная мощность: | J45: уровень напряжения: | K45: тип распределительной трансформаторной подстанции:
B46: 1
B47: 1 | C47: RTP | D47: =ROW($D$45) -> 45 | F47: Удалить | G47: =$G$44 & (ROWS($G$46:G47)-2)+1&"." -> 5.1.
B48: 1
H49: Добавить
B50: 1
G51: 6. | H51: СТРОИТЕЛЬСТВО ЦЕНТРОВ ПИТАНИЯ, ПОДСТАНЦИЙ УРОВНЕМ НАПРЯЖЕНИЯ 35 КВ И ВЫШЕ (ПС) | O51: =SUM(O53:O55) -> 0.000 | P51: =SUM(P53:P55) -> 0.000 | Q51: =SUM(Q53:Q55) -> 0.000 | S51: =SUM(S53:S55) -> 0.000 | T51: =SUM(T53:T55) -> 0.000 | U51: =SUM(U53:U55) -> 0.000 | W51: =SUM(W53:W55) -> 0.000 | X51: =SUM(X53:X55) -> 0.000 | Y51: =SUM(Y53:Y55) -> 0.000 | AA51: =SUM(AA53:AA55) -> 0.000 | AB51: =SUM(AB53:AB55) -> 0.000 | AC51: =SUM(AC53:AC55) -> 0.000
H52: количество трансформаторов: | I52: трансформаторная мощность: | J52: уровень напряжения: | K52: тип центра питания, подстанции:
B53: 1
B54: 1 | C54: SP | D54: =ROW($D$52) -> 52 | F54: Удалить | G54: =$G$51 & (ROWS($G$53:G54)-2)+1&"." -> 6.1.
B55: 1
H56: Добавить
B57: 1
G58: 7. | H58: ОБЕСПЕЧЕНИЕ СРЕДСТВАМИ КОММЕРЧЕСКОГО УЧЕТА ЭЛЕКТРИЧЕСКОЙ ЭНЕРГИИ (МОЩНОСТИ) | O58: =SUM(O60:O62) -> 0.000 | P58: =SUM(P60:P62) -> 0.000 | Q58: =SUM(Q60:Q62) -> 0.000 | S58: =SUM(S60:S62) -> 0.000 | T58: =SUM(T60:T62) -> 0.000 | U58: =SUM(U60:U62) -> 0.000 | W58: =SUM(W60:W62) -> 0.000 | X58: =SUM(X60:X62) -> 0.000 | Y58: =SUM(Y60:Y62) -> 0.000 | AA58: =SUM(AA60:AA62) -> 0.000 | AB58: =SUM(AB60:AB62) -> 0.000 | AC58: =SUM(AC60:AC62) -> 0.000
H59: количество фаз: | I59: тип включения: | J59: уровень напряжения:
B60: 1
B61: 1 | C61: SKU | D61: =ROW($D$59) -> 59 | F61: Удалить | G61: =$G$58 & (ROWS($G$60:G61)-2)+1&"." -> 7.1.
B62: 1
H63: Добавить
B64: 1
G65: * - случае если в субъекте Российской Федерации за 3 предыдущих года не осуществлялось строительство тех объектов электросетевого хозяйства, в отношении которых устанавливаются стандартизированные тарифные ставки либо не осуществлялось обеспечение средствами коммерческого учета электрической энергии (мощности), расчет ставок может производиться исходя из данных за два предыдущих года, в случае отсутствия данных за два года - за предыдущий год, а при отсутствии данных за три года - по планируемым расходам, определенным по сметам, выполненным с применением сметных нормативов.
A66: ddShPr11City_rstop

Sheet Прил. № 2.1 (год-3)
A1: Приложение № 2.1
A2: ="Расходы на выполнение мероприятий по технологическому присоединению, предусмотренных пунктами "&CHAR(34)&"а"&CHAR(34)&" и "&CHAR(34)&"в"&CHAR(34)&" пункта 16 Методических указаний"&CHAR(10)&" за " &IF(Титульный!C12="","--- выберите период на листе Титульный ---",(Титульный!C12-3)) & " год" -> Расходы на выполнение мероприятий по технологическому присоединению, предусмотренных пунктами "а" и "в" пункта 16 Методических указаний за 2019 год
A3: № п/п | B3: Наименование мероприятий | C3: ="Год формирования расходов (согласно учетной политике сетевой организации) за " &IF(Титульный!C12="","--- выберите период на листе Титульный ---",(Титульный!C12-3)) & " год" -> Год формирования расходов (согласно учетной политике сетевой организации) за 2019 год
C4: Информация для расчета стандартизированной тарифной ставки С1 | G4: расходы на одно присоединение (руб. на 1 ТП)
C5: расходы согласно Приложению № 3 по каждому мероприятию (тыс. руб.) | D5: количество технологических присоединений (шт.) | E5: объем максимальной мощности (кВт) | F5: Итого расходы на одно присоединение (тыс.руб. на 1 ТП) (гр.3/ гр.4)
G6: до 35 кВ | I6: свыше 35 кВ включительно
G7: до 8900 кВт | H7: свыше 8900 кВт включительно | I7: до 8900 кВт | J7: свыше 8900 кВт включительно
A8: 1 | B8: 2 | C8: 3 | D8: 4 | E8: 5 | F8: 6 | G8: 15 | H8: 16 | I8: 17 | J8: 18
A9: 1 | B9: Подготовка и выдача сетевой организацией технических условий заявителю | C9: 4.23728 | D9: 1 | E9: 221 | F9: =IF(D9=0,0,C9 /D9) -> 4.23728 | G9: =IF(D9=0,0,C9/D9) -> 4.23728 | H9: =IF(#REF!=0,0,#REF!/#REF!) ->  | I9: =IF(#REF!=0,0,#REF!/#REF!) ->  | J9: =IF(#REF!=0,0,#REF!/#REF!) -> 
A10: 2 | B10: Проверка сетевой организацией выполнения заявителем технических условий | C10: - | D10: - | E10: - | F10: - | G10: =IF(D10=0,0,C10/D10) ->  | H10: =IF(#REF!=0,0,#REF!/#REF!) ->  | I10: =IF(#REF!=0,0,#REF!/#REF!) ->  | J10: =IF(#REF!=0,0,#REF!/#REF!) -> 
A11: 3 | B11: Итого | C11: =C9+C10 ->  | D11: =D9+D10 ->  | G11: =IF(D11=0,0,C11/D11) ->  | H11: =IF(#REF!=0,0,#REF!/#REF!) ->  | I11: =IF(#REF!=0,0,#REF!/#REF!) ->  | J11: =IF(#REF!=0,0,#REF!/#REF!) -> 
A12: 2.1 | B12: Выдача сетевой организацией уведомления об обеспечении сетевой организацией возможности присоединения к электрическим сетям заявителям, указанным в абзаце шестом пункта 24 Методических указаний по определению размера платы за технологическое присоединение к электрическим сетям | C12: 0 | D12: 0 | E12: 0 | F12: =IF(D12=0,0,C12 /D12) -> 0 | G12: =IF(D12=0,0,C12/D12) -> 0 | H12: =IF(#REF!=0,0,#REF!/#REF!) ->  | I12: =IF(#REF!=0,0,#REF!/#REF!) ->  | J12: =IF(#REF!=0,0,#REF!/#REF!) -> 
A13: 2.2 | B13: Проверка сетевой организацией выполнения технических условий заявителями, указанными в абзаце седьмом пункта 24 Методических указаний по определению размера платы за технологическое присоединение к электрическим сетям | C13: 2.81426 | D13: 1 | E13: 221 | F13: 2.81426 | G13: =IF(D13=0,0,C13/D13) -> 2.81426 | H13: =IF(#REF!=0,0,#REF!/#REF!) ->  | I13: =IF(#REF!=0,0,#REF!/#REF!) ->  | J13: =IF(#REF!=0,0,#REF!/#REF!) -> 

Sheet Прил. № 2.2 (год-2)
A1: Приложение № 2.2
A2: ="Расходы на выполнение мероприятий по технологическому присоединению, предусмотренных пунктами "&CHAR(34)&"а"&CHAR(34)&" и "&CHAR(34)&"в"&CHAR(34)&" пункта 16 Методических указаний"&CHAR(10)&" за " &IF(Титульный!C12="","--- выберите период на листе Титульный ---",(Титульный!C12-2)) & " год" -> Расходы на выполнение мероприятий по технологическому присоединению, предусмотренных пунктами "а" и "в" пункта 16 Методических указаний за 2020 год
A3: № п/п | B3: Наименование мероприятий | C3: ="Год формирования расходов (согласно учетной политике сетевой организации) за " &IF(Титульный!C12="","--- выберите период на листе Титульный ---",(Титульный!C12-2)) & " год" -> Год формирования расходов (согласно учетной политике сетевой организации) за 2020 год
C4: Информация для расчета стандартизированной тарифной ставки С1 | G4: расходы на одно присоединение (руб. на 1 ТП)
C5: расходы согласно Приложению № 3 по каждому мероприятию (тыс. руб.) | D5: количество технологических присоединений (шт.) | E5: объем максимальной мощности (кВт) | F5: Итого расходы на одно присоединение (тыс.руб. на 1 ТП) (гр.3/ гр.4)
G6: до 35 кВ | I6: свыше 35 кВ включительно
G7: до 8900 кВт | H7: свыше 8900 кВт включительно | I7: до 8900 кВт | J7: свыше 8900 кВт включительно
A8: 1 | B8: 2 | C8: 3 | D8: 4 | E8: 5 | F8: 6 | G8: 15 | H8: 16 | I8: 17 | J8: 18
A9: 1 | B9: Подготовка и выдача сетевой организацией технических условий заявителю | C9: 0 | D9: 0 | E9: 0 | F9: =IF(D9=0,0,C9 /D9) -> 0 | G9: =IF(D9=0,0,C9/D9) -> 0 | H9: =IF(#REF!=0,0,#REF!/#REF!) ->  | I9: =IF(#REF!=0,0,#REF!/#REF!) ->  | J9: =IF(#REF!=0,0,#REF!/#REF!) -> 
A10: 2 | B10: Проверка сетевой организацией выполнения заявителем технических условий | C10: - | D10: - | E10: - | F10: - | G10: =IF(D10=0,0,C10/D10) ->  | H10: =IF(#REF!=0,0,#REF!/#REF!) ->  | I10: =IF(#REF!=0,0,#REF!/#REF!) ->  | J10: =IF(#REF!=0,0,#REF!/#REF!) -> 
A11: 3 | B11: Итого | C11: =C9+C10 ->  | D11: =D9+D10 ->  | G11: =IF(D11=0,0,C11/D11) ->  | H11: =IF(#REF!=0,0,#REF!/#REF!) ->  | I11: =IF(#REF!=0,0,#REF!/#REF!) ->  | J11: =IF(#REF!=0,0,#REF!/#REF!) -> 
A12: 2.1 | B12: Выдача сетевой организацией уведомления об обеспечении сетевой организацией возможности присоединения к электрическим сетям заявителям, указанным в абзаце шестом пункта 24 Методических указаний по определению размера платы за технологическое присоединение к электрическим сетям | C12: 0 | D12: 0 | E12: 0 | F12: =IF(D12=0,0,C12 /D12) -> 0 | G12: =IF(D12=0,0,C12/D12) -> 0 | H12: =IF(#REF!=0,0,#REF!/#REF!) ->  | I12: =IF(#REF!=0,0,#REF!/#REF!) ->  | J12: =IF(#REF!=0,0,#REF!/#REF!) -> 
A13: 2.2 | B13: Проверка сетевой организацией выполнения технических условий заявителями, указанными в абзаце седьмом пункта 24 Методических указаний по определению размера платы за технологическое присоединение к электрическим сетям | C13: 0 | D13: 0 | E13: 0 | F13: 0 | G13: =IF(D13=0,0,C13/D13) -> 0 | H13: =IF(#REF!=0,0,#REF!/#REF!) ->  | I13: =IF(#REF!=0,0,#REF!/#REF!) ->  | J13: =IF(#REF!=0,0,#REF!/#REF!) -> 

Sheet Прил. № 2.3 (год-1)
A1: Приложение № 2.3
A2: ="Расходы на выполнение мероприятий по технологическому присоединению, предусмотренных пунктами "&CHAR(34)&"а"&CHAR(34)&" и "&CHAR(34)&"в"&CHAR(34)&" пункта 16 Методических указаний"&CHAR(10)&" за " &IF(Титульный!C12="","--- выберите период на листе Титульный ---",(Титульный!C12-1)) & " год" -> Расходы на выполнение мероприятий по технологическому присоединению, предусмотренных пунктами "а" и "в" пункта 16 Методических указаний за 2021 год
A3: № п/п | B3: Наименование мероприятий | C3: ="Год формирования расходов (согласно учетной политике сетевой организации) за " &IF(Титульный!C12="","--- выберите период на листе Титульный ---",(Титульный!C12-1)) & " год" -> Год формирования расходов (согласно учетной политике сетевой организации) за 2021 год
C4: Информация для расчета стандартизированной тарифной ставки С1 | G4: расходы на одно присоединение (руб. на 1 ТП)
C5: расходы согласно Приложению № 3 по каждому мероприятию (тыс. руб.) | D5: количество технологических присоединений (шт.) | E5: объем максимальной мощности (кВт) | F5: Итого расходы на одно присоединение (тыс.руб. на 1 ТП) (гр.3/ гр.4)
G6: до 35 кВ | I6: свыше 35 кВ включительно
G7: до 8900 кВт | H7: свыше 8900 кВт включительно | I7: до 8900 кВт | J7: свыше 8900 кВт включительно
A8: 1 | B8: 2 | C8: 3 | D8: 4 | E8: 5 | F8: 6 | G8: 15 | H8: 16 | I8: 17 | J8: 18
A9: 1 | B9: Подготовка и выдача сетевой организацией технических условий заявителю | C9: 0 | D9: 0 | E9: 0 | F9: =IF(D9=0,0,C9 /D9) -> 0 | G9: =IF(D9=0,0,C9/D9) -> 0 | H9: =IF(#REF!=0,0,#REF!/#REF!) ->  | I9: =IF(#REF!=0,0,#REF!/#REF!) ->  | J9: =IF(#REF!=0,0,#REF!/#REF!) -> 
A10: 2 | B10: Проверка сетевой организацией выполнения заявителем технических условий | C10: - | D10: - | E10: - | F10: - | G10: =IF(D10=0,0,C10/D10) ->  | H10: =IF(#REF!=0,0,#REF!/#REF!) ->  | I10: =IF(#REF!=0,0,#REF!/#REF!) ->  | J10: =IF(#REF!=0,0,#REF!/#REF!) -> 
A11: 3 | B11: Итого | C11: =C9+C10 ->  | D11: =D9+D10 ->  | G11: =IF(D11=0,0,C11/D11) ->  | H11: =IF(#REF!=0,0,#REF!/#REF!) ->  | I11: =IF(#REF!=0,0,#REF!/#REF!) ->  | J11: =IF(#REF!=0,0,#REF!/#REF!) -> 
A12: 2.1 | B12: Выдача сетевой организацией уведомления об обеспечении сетевой организацией возможности присоединения к электрическим сетям заявителям, указанным в абзаце шестом пункта 24 Методических указаний по определению размера платы за технологическое присоединение к электрическим сетям | C12: 0 | D12: 0 | E12: 0 | F12: =IF(D12=0,0,C12 /D12) -> 0 | G12: =IF(D12=0,0,C12/D12) -> 0 | H12: =IF(#REF!=0,0,#REF!/#REF!) ->  | I12: =IF(#REF!=0,0,#REF!/#REF!) ->  | J12: =IF(#REF!=0,0,#REF!/#REF!) -> 
A13: 2.2 | B13: Проверка сетевой организацией выполнения технических условий заявителями, указанными в абзаце седьмом пункта 24 Методических указаний по определению размера платы за технологическое присоединение к электрическим сетям | C13: 0 | D13: 0 | E13: 0 | F13: 0 | G13: =IF(D13=0,0,C13/D13) -> 0 | H13: =IF(#REF!=0,0,#REF!/#REF!) ->  | I13: =IF(#REF!=0,0,#REF!/#REF!) ->  | J13: =IF(#REF!=0,0,#REF!/#REF!) -> 

Sheet Прил. № 3.1 ('а' п.16)
A1: Приложение № 3.1
A2: ="Расчет фактических расходов на выполнение мероприятий по технологическому присоединению, связанных с подготовкой и выдачей сетевой организацией технических условий заявителю, предусмотренных подпунктом "&CHAR(34)&"а"&CHAR(34)&" пункта 16 Методических указаний за " &IF(Титульный!C12="","--- выберите период на листе Титульный ---",(Титульный!C12-3) & "–" & (Титульный!C12-1) ) & " годы" -> Расчет фактических расходов на выполнение мероприятий по технологическому присоединению, связанных с подготовкой и выдачей сетевой организацией технических условий заявителю, предусмотренных подпунктом "а" пункта 16 Методических указаний за 2019–2021 годы
A3: № п/п | B3: Показатели | C3: =CONCATENATE("Данные за " &IF(Титульный!C12="","--- выберите период на листе Титульный ---",(Титульный!C12-1)) & " год,", CHAR(10)," тыс. рублей") -> Данные за 2021 год, тыс. рублей | D3: =CONCATENATE("Данные за " &IF(Титульный!C12="","--- выберите период на листе Титульный ---",(Титульный!C12-2)) & " год,", CHAR(10)," тыс. рублей") -> Данные за 2020 год, тыс. рублей | E3: =CONCATENATE("Данные за " &IF(Титульный!C12="","--- выберите период на листе Титульный ---",(Титульный!C12-3)) & " год,", CHAR(10)," тыс. рублей") -> Данные за 2019 год, тыс. рублей | F3: Итого, тыс. рублей
A4: 1 | B4: 2 | C4: 3 | D4: 4 | E4: 5 | F4: 6
A5: 1 | B5: Расходы по выполнению мероприятий по технологическому присоединению, всего | C5: =C6+C7+C8+C9+C10+C19 -> 0.000 | D5: =D6+D7+D8+D9+D10+D19 -> 0.000 | E5: =E6+E7+E8+E9+E10+E19 -> 4.237 | F5: =C5+D5+E5 -> 4.237
A6: 1.1 | B6: Вспомогательные материалы | C6: 0.000 | D6: 0.000 | E6: 0.000 | F6: =C6+D6+E6 -> 0.000
A7: 1.2 | B7: Энергия на хозяйственные нужды | C7: 0.000 | D7: 0.000 | E7: 0.000 | F7: 0.000
A8: 1.3 | B8: Оплата труда ППП | C8: 0.000 | D8: 0.000 | E8: =3668.65/1000 -> 3.669 | F8: 3.669
A9: 1.4 | B9: Отчисления на страховые взносы | C9: 0.000 | D9: 0.000 | E9: =553.95/1000 -> 0.554 | F9: 0.554
A10: 1.5 | B10: Прочие расходы, всего, в том числе: | C10: =SUM(C11:C13) -> 0.000 | D10: =SUM(D11:D13) -> 0.000 | E10: =SUM(E11:E13) -> 0.015 | F10: 0.015
A11: 1.5.1 | B11: работы и услуги производственного характера | C11: 0.000 | D11: 0.000 | E11: 0.000 | F11: 0.000
A12: 1.5.2 | B12: налоги и сборы, уменьшающие налогооблагаемую базу на прибыль организаций, всего | C12: 0.000 | D12: 0.000 | E12: 0.000 | F12: 0.000
A13: 1.5.3 | B13: работы и услуги непроизводственного характера, в том числе: | C13: =SUM(C14:C18) -> 0.000 | D13: =SUM(D14:D18) -> 0.000 | E13: =SUM(E14:E18) -> 0.015 | F13: 0.015
A14: 1.5.3.1 | B14: услуги связи | C14: 0.000 | D14: 0.000 | E14: 0.000 | F14: 0.000
A15: 1.5.3.2 | B15: расходы на охрану и пожарную безопасность | C15: 0.000 | D15: 0.000 | E15: 0.000 | F15: 0.000
A16: 1.5.3.3 | B16: расходы на информационное обслуживание, иные услуги, связанные с деятельностью по технологическому присоединению | C16: 0.000 | D16: 0.000 | E16: 0.000 | F16: 0.000
A17: 1.5.3.4 | B17: плата за аренду имущества | C17: 0.000 | D17: 0.000 | E17: 0.000 | F17: 0.000
A18: 1.5.3.5 | B18: другие прочие расходы, связанные с производством и реализацией | C18: 0.000 | D18: 0.000 | E18: 0.015 | F18: 0.015
A19: 1.6 | B19: Внереализованные расходы, всего | C19: =SUM(C20:C23) -> 0.000 | D19: =SUM(D20:D23) -> 0.000 | E19: =SUM(E20:E23) -> 0.000 | F19: 0.000
A20: 1.6.1 | B20: расходы на услуги банков | C20: 0.000 | D20: 0.000 | E20: 0.000 | F20: 0.000
A21: 1.6.2 | B21: % за пользование кредитом | C21: 0.000 | D21: 0.000 | E21: 0.000 | F21: 0.000
A22: 1.6.3 | B22: прочие обоснованные расходы | C22: 0.000 | D22: 0.000 | E22: 0.000 | F22: 0.000
A23: 1.6.4 | B23: денежные выплаты социального характера ( по Коллективному договору) | C23: 0.000 | D23: 0.000 | E23: 0.000 | F23: 0.000

Sheet Прил. № 3.2 ('в' п.16)
A1: Приложение № 3.2
A2: ="Расчет фактических расходов на выполнение мероприятий по технологическому присоединению, связанных с проверкой сетевой организацией выполнения заявителем технических условий, предусмотренных подпунктом "&CHAR(34)&"в"&CHAR(34)&" пункта 16 Методических указаний за " &IF(Титульный!C12="","--- выберите период на листе Титульный ---",(Титульный!C12-3) & "–" & (Титульный!C12-1) ) & " годы" -> Расчет фактических расходов на выполнение мероприятий по технологическому присоединению, связанных с проверкой сетевой организацией выполнения заявителем технических условий, предусмотренных подпунктом "в" пункта 16 Методических указаний за 2019–2021 годы
A3: № п/п | B3: Показатели | C3: =CONCATENATE("Данные за " &IF(Титульный!C12="","--- выберите период на листе Титульный ---",(Титульный!C12-1)) & " год,", CHAR(10)," тыс. рублей") -> Данные за 2021 год, тыс. рублей | D3: =CONCATENATE("Данные за " &IF(Титульный!C12="","--- выберите период на листе Титульный ---",(Титульный!C12-2)) & " год,", CHAR(10)," тыс. рублей") -> Данные за 2020 год, тыс. рублей | E3: =CONCATENATE("Данные за " &IF(Титульный!C12="","--- выберите период на листе Титульный ---",(Титульный!C12-3)) & " год,", CHAR(10)," тыс. рублей") -> Данные за 2019 год, тыс. рублей | F3: Итого, тыс. рублей
A4: 1 | B4: 2 | C4: 3 | D4: 4 | E4: 5 | F4: 6
A5: 1 | B5: Расходы по выполнению мероприятий по технологическому присоединению, всего | C5: =C6+C7+C8+C9+C10+C19 -> 0.000 | D5: =D6+D7+D8+D9+D10+D19 -> 0.000 | E5: =E6+E7+E8+E9+E10+E19 -> 2.814 | F5: =C5+D5+E5 -> 2.814
A6: 1.1 | B6: Вспомогательные материалы | C6: 0.000 | D6: 0.000 | E6: 0.000 | F6: =C6+D6+E6 -> 0.000
A7: 1.2 | B7: Энергия на хозяйственные нужды | C7: 0.000 | D7: 0.000 | E7: 0.000 | F7: 0.000
A8: 1.3 | B8: Оплата труда ППП | C8: 0.000 | D8: 0.000 | E8: =1156.25/1000 -> 1.156 | F8: 1.156
A9: 1.4 | B9: Отчисления на страховые взносы | C9: 0.000 | D9: 0.000 | E9: =313.37/1000 -> 0.313 | F9: 0.313
A10: 1.5 | B10: Прочие расходы, всего, в том числе: | C10: =SUM(C11:C13) -> 0.000 | D10: =SUM(D11:D13) -> 0.000 | E10: =SUM(E11:E13) -> 1.345 | F10: 1.345
A11: 1.5.1 | B11: работы и услуги производственного характера | C11: 0.000 | D11: 0.000 | E11: =1340/1000 -> 1.340 | F11: 1.340
A12: 1.5.2 | B12: налоги и сборы, уменьшающие налогооблагаемую базу на прибыль организаций, всего | C12: 0.000 | D12: 0.000 | E12: 0.000 | F12: 0.000
A13: 1.5.3 | B13: работы и услуги непроизводственного характера, в том числе: | C13: =SUM(C14:C18) -> 0.000 | D13: =SUM(D14:D18) -> 0.000 | E13: =SUM(E14:E18) -> 0.005 | F13: 0.005
A14: 1.5.3.1 | B14: услуги связи | C14: 0.000 | D14: 0.000 | E14: 0.000 | F14: 0.000
A15: 1.5.3.2 | B15: расходы на охрану и пожарную безопасность | C15: 0.000 | D15: 0.000 | E15: 0.000 | F15: 0.000
A16: 1.5.3.3 | B16: расходы на информационное обслуживание, иные услуги, связанные с деятельностью по технологическому присоединению | C16: 0.000 | D16: 0.000 | E16: 0.000 | F16: 0.000
A17: 1.5.3.4 | B17: плата за аренду имущества | C17: 0.000 | D17: 0.000 | E17: 0.000 | F17: 0.000
A18: 1.5.3.5 | B18: другие прочие расходы, связанные с производством и реализацией | C18: 0.000 | D18: 0.000 | E18: =4.64/1000 -> 0.005 | F18: 0.005
A19: 1.6 | B19: Внереализованные расходы, всего | C19: =SUM(C20:C23) -> 0.000 | D19: =SUM(D20:D23) -> 0.000 | E19: =SUM(E20:E23) -> 0.000 | F19: 0.000
A20: 1.6.1 | B20: расходы на услуги банков | C20: 0.000 | D20: 0.000 | E20: 0.000 | F20: 0.000
A21: 1.6.2 | B21: % за пользование кредитом | C21: 0.000 | D21: 0.000 | E21: 0.000 | F21: 0.000
A22: 1.6.3 | B22: прочие обоснованные расходы | C22: 0.000 | D22: 0.000 | E22: 0.000 | F22: 0.000
A23: 1.6.4 | B23: денежные выплаты социального характера ( по Коллективному договору) | C23: 0.000 | D23: 0.000 | E23: 0.000 | F23: 0.000

Sheet Проверка
B1: Сообщение | C1: Адрес | D1: Статус

Sheet Справочник (hidden)
B1: VL1 | C1: VL2 | D1: VL3 | E1: VL4 | F1: VL5 | G1: VL6 | J1: KL1 | K1: KL2 | L1: KL3 | M1: KL4 | N1: KL5 | O1: KL6 | R1: PS1 | S1: PS2 | T1: PS3 | U1: PS4 | W1: TS1 | X1: TS2 | Y1: TS3 | Z1: TS4 | AB1: RTP1 | AC1: RTP2 | AD1: RTP3 | AE1: RTP4 | AG1: SP1 | AH1: SP2 | AI1: SP3 | AJ1: SP4 | AL1: SKU1 | AM1: SKU2 | AN1: SKU3 | AO1: SKU4 | AP1: SKU5 | AQ1: SKU6
B2: 1. ВЛ Воздушные линии | J2: 2. КЛ Кабельные линии | R2: 3. Пункты секционирования | W2: 4. ТП Трансформаторные подстанции | AB2: 5. РТП Распред. трансформаторные подстанции | AG2: 6. Подстанции | AL2: 7. СКУ Средства коммерческого учета
B3: строительство воздушных линий электропередачи | J3: строительство кабельных линий электропередачи | R3: строительство пунктов секционирования | W3: строительство комплектных трансформаторных подстанций (КТП) с уровнем напряжения до 35 кВ | AB3: строительство распределительных трансформаторных подстанций (РТП) с уровнем напряжения до 35 кВ | AG3: строительство центров питания, подстанций уровнем напряжения 35 кВ и выше (ПС) | AL3: обеспечение средствами коммерческого учета электрической энергии (мощности)
B4: тип опор: | C4: тип провода: | D4: материал провода: | E4: сечение провода: | F4: количество цепей: | G4: уровень напряжения: | J4: способ прокладки: | K4: количество жил: | L4: тип изоляции: | M4: сечение провода: | N4: количество кабелей в траншее, канале, туннеле или коллекторе, на галерее или эстакаде, труб в скважине: | O4: уровень напряжения: | R4: пункт секционирования: | S4: номинальный ток: | T4: количество ячеек в распределительном или переключательном пункте: | U4: уровень напряжения: | W4: уровень напряжения: | X4: количество трансформаторов: | Y4: трансформаторная мощность: | Z4: тип трансформаторной подстанции: | AB4: количество трансформаторов: | AC4: трансформаторная мощность: | AD4: уровень напряжения: | AE4: тип распределительной трансформаторной подстанции: | AG4: количество трансформаторов: | AH4: трансформаторная мощность: | AI4: уровень напряжения: | AJ4: тип центра питания, подстанции: | AL4: количество фаз: | AM4: тип включения: | AN4: уровень напряжения:
B5: деревянные | C5: изолированный | D5: медный | E5: до 50 мм2 включительно | F5: одноцепная | G5: 0,4 кВ и ниже | J5: в траншеях | K5: одножильные | L5: резиновая и пластмассовая | M5: до 50 мм2 включительно | N5: один | O5: 0,4 кВ и ниже | R5: реклоузеры | S5: до 100 А включительно | T5: до 5 ячеек включительно | U5: 0,4 кВ и ниже | W5: 6/0,4 кВ | X5: однотрансформаторные | Y5: до 25 кВА включительно | Z5: столбовой/мачтовый | AB5: однотрансформаторные | AC5: до 25 кВА включительно | AD5: 6(10)/0,4 кВ | AE5: открытого типа | AG5: однотрансформаторные | AH5: до 6,3 МВА включительно | AI5: 35/6(10) кВ | AJ5: открытого типа | AL5: однофазный | AM5: прямой | AN5: 0,4 кВ и ниже | AO5: 0,4 кВ и ниже | AP5: 0,4 кВ и ниже | AQ5: 1-10 кВ
B6: железобетонные опоры | C6: неизолированный | D6: стальной | E6: от 50 до 100 мм2 включительно | F6: двухцепная | G6: 1-20 кВ | J6: в блоках | K6: многожильные | L6: бумажная | M6: от 50 до 100 мм2 включительно | N6: два | O6: 1-10 кВ | R6: линейные разъединители | S6: от 100 до 250 А включительно | T6: от 5 до 10 ячеек включительно | U6: 1-20 кВ | W6: 10/0,4 кВ | X6: двухтрансформаторные | Y6: от 25 до 100 кВА включительно | Z6: шкафной или киосковый | AB6: двухтрансформаторные | AC6: от 25 до 100 кВА включительно | AD6: 20/0,4 кВ | AE6: закрытого типа | AG6: двухтрансформаторные | AH6: от 6,3 до 10 МВА включительно | AI6: 35/0,4 кВ | AJ6: закрытого типа | AL6: трехфазный | AM6: полукосвенный | AN6: 1-10 кВ | AO6: 1-20 кВ | AP6: 1-20 кВ | AQ6: 20 кВ
B7: металлические опоры | D7: сталеалюминиевый | E7: от 100 до 200 мм2 включительно | G7: 27,5-60 кВ | J7: в каналах | M7: от 100 до 200 мм2 включительно | N7: три | O7: 15-20 кВ | R7: выключатели нагрузки, устанавливаемые вне трансформаторных подстанций и распределительных и переключательных пунктов (РП) | S7: от 250 до 500 А включительно | T7: от 10 до 15 ячеек включительно | U7: 35 кВ | W7: 20/0,4 кВ | Y7: от 100 до 250 кВА включительно | Z7: блочный | AC7: от 100 до 250 кВА включительно | AH7: от 10 до 16 МВА включительно | AI7: 110/35 кВ | AM7: косвенный | AN7: 1-20 кВ | AP7: 35 кВ | AQ7: 35 кВ
B8: металлические опоры, за исключением многогранных | D8: алюминиевый | E8: от 200 до 500 мм2 включительно | G8: 110 кВ и выше | J8: в туннелях и коллекторах | M8: от 200 до 250 мм2 включительно | N8: четыре | O8: 27,5-60 кВ | R8: распределительные пункты (РП), за исключением комплектных распределительных устройств наружной установки (КРН, КРУН) | S8: от 500 до 1000 А включительно | T8: свыше 15 ячеек | U8: 110 кВ и выше | W8: 6/10 (10/6) кВ | Y8: от 250 до 400 кВА включительно | Z8: встроенный | AC8: от 250 до 400 кВА включительно | AH8: от 16 до 25 МВА включительно | AI8: 110/6(10) кВ | AN8: 20 кВ | AP8: 110 кВ и выше | AQ8: 110 кВ и выше
B9: многогранные металлические опоры | E9: от 500 до 800 мм2 включительно | J9: в галереях и эстакадах | M9: от 250 до 300 мм2 включительно | N9: более четырех | O9: 110 кВ и выше | R9: комплектные распределительные устройства наружной установки (КРН, КРУН) | S9: свыше 1000 А | W9: 10/20 (20/10) кВ | Y9: от 400 до 630 кВА включительно | AC9: от 400 до 630 кВА включительно | AH9: от 25 до 32 МВА включительно | AI9: 110/35/6(10) кВ | AN9: 35 кВ
E10: свыше 800 мм2 | J10: горизонтальное наклонное бурение | M10: от 300 до 400 мм2 включительно | R10: переключательные пункты | W10: 6/20 (20/6) кВ | Y10: от 630 до 1000 кВА включительно | AC10: от 630 до 1000 кВА включительно | AH10: от 32 до 40 МВА включительно | AN10: 110 кВ и выше
J11: подводная прокладка | M11: от 400 до 500 мм2 включительно | Y11: от 1000 до 1250 кВА включительно | AC11: от 1000 до 1250 кВА включительно | AH11: от 40 до 63 МВА включительно
M12: от 500 до 800 мм2 включительно | Y12: от 1250 до 1600 кВА включительно | AC12: от 1250 до 1600 кВА включительно | AH12: от 63 до 80 МВА включительно
M13: свыше 800 мм2 | Y13: от 1600 до 2000 кВА включительно | AC13: от 1600 до 2000 кВА включительно | AH13: от 80 до 100 МВА включительно
Y14: от 2000 до 2500 кВА включительно | AC14: от 2000 до 2500 кВА включительно | AH14: свыше 100 МВА
Y15: от 2500 до 3150 кВА включительно | AC15: от 2500 до 3150 кВА включительно
Y16: от 3150 до 4000 кВА включительно | AC16: свыше 3150 кВА
Y17: свыше 4000 кВА
